{"text_format":"3","workbook":"xlsx","n_sheets":5,"sheets":["Peo ülevaade","Külaliste Nimekiri","Toit Ja Jook","Muu Vajalik","Istumispaigutuse Ruudustik"],"not_rendered":{"defined_names":9},"read":"whole","date_system":"1900"}

{"sheet":"Peo ülevaade","index":0,"n_rows":21,"n_cols":8,"rows_kept":21,"merged":[[6,3,6,4],[6,5,6,6],[9,1,9,2]]}
[]
[]
[null,"Peo ülevaade"]
[]
[]
[null,"ÜRITUS",null,"KÜLALISTE KOKKUVÕTE",{"$nulls":3},{"$f":"\"VASTUSETA KUTSED: \"&VastusetaKutsed","v":"VASTUSETA KUTSED: 2"}]
[null,"Vanaema 75. sünnipäev",null,"RSVP ÜLEVAADE",null,"MAKSUMUS KÜLALISE KOHTA",null,"EELARVESUMMA"]
[{"$nulls":3},"Kinnitatud külalised","Kinnitatud kokku","Toit","Muu","Kokku"]
[null,"KUUPÄEV",null,"Täiskasvanud",{"$f":"SUMIF(KülalineLaud[OSALEB?],\"=Jah\",KülalineLaud[TÄISKASVANUD])","v":26},{"$f":"SöökLaud[[#Totals],[KULU TÄISKASVANU KOHTA]]","v":{"v":12.690089084110037,"d":"12.69 €"}},{"$f":"PõhiasjadKuluKülaline","v":{"v":18.695652173913043,"d":"18.70 €"}},{"$f":"(AttendeeSummary[[#This Row],[Toit]]+AttendeeSummary[[#This Row],[Muu]])*TäiskasvanudKokku","v":{"v":816.0292727086002,"d":"816.03 €"}}]
[null,"2011-06-14",null,"Lapsed",{"$f":"SUMIF(KülalineLaud[OSALEB?],\"=Jah\",KülalineLaud[LAPSED])","v":20},{"$f":"SöökLaud[[#Totals],[KULU LAPSE KOHTA]]","v":{"v":7.252884190656953,"d":"7.25 €"}},{"$f":"PõhiasjadKuluKülaline","v":{"v":18.695652173913043,"d":"18.70 €"}},{"$f":"(AttendeeSummary[[#This Row],[Toit]]+AttendeeSummary[[#This Row],[Muu]])*LapsedKokku","v":{"v":518.9707272914,"d":"518.97 €"}}]
[{"$nulls":3},"Kokku",{"$f":"SUBTOTAL(109,AttendeeSummary[Kinnitatud kokku])","v":46},{"$f":"\"Avg.     \"&TEXT(SUBTOTAL(101,AttendeeSummary[Toit]),\"# ##0,00 €\")","v":"Avg.      010 €"},{"$f":"\"Avg.     \"&TEXT(SUBTOTAL(101,AttendeeSummary[Muu]),\"# ##0,00 €\")","v":"Avg.      019 €"},{"$f":"SUBTOTAL(109,AttendeeSummary[Kokku])","v":{"v":1335,"d":"1,335.00 €"}}]
[null,"KELLAAEG"]
[null,"Kl 14:00–16:00"]
[]
[null,"ASUKOHT",null,"EELARVE KOKKUVÕTE"]
[null,"Tädi Mari maja",null,"ARTIKKEL","KOGUS","EELARVESUMMA","KOGUMAKSUMUS","VAHE"]
[{"$nulls":3},"Toit ja jook",{"$f":"COUNTA(SöökLaud[TOIT VÕI JOOK])","v":18},{"v":500,"d":"500.00 €"},{"$f":"SöökLaud[[#Totals],[KOGUMAKSUMUS]]","v":{"v":475,"d":"475.00 €"}},{"$f":"EelarveÜlevaade[[#This Row],[EELARVESUMMA]]-EelarveÜlevaade[[#This Row],[KOGUMAKSUMUS]]","v":{"v":25,"d":"25.00 €"}}]
[{"$nulls":3},{"$f":"Laud1Päis","v":"Seadmed ja tarvikud"},{"$f":"COUNTA(Laud1Eelarve[Seadmed ja tarvikud])","v":7},{"v":400,"d":"400.00 €"},{"$f":"Laud1Eelarve[[#Totals],[Hind]]","v":{"v":400,"d":"400.00 €"}},{"$f":"EelarveÜlevaade[[#This Row],[EELARVESUMMA]]-EelarveÜlevaade[[#This Row],[KOGUMAKSUMUS]]","v":{"v":0,"d":"0.00 €"}}]
[{"$nulls":3},{"$f":"Laud2Päis","v":"Dekoratsioonid"},{"$f":"COUNTA(Laud2Eelarve[Dekoratsioonid])","v":4},{"v":150,"d":"150.00 €"},{"$f":"Laud2Eelarve[[#Totals],[Hind]]","v":{"v":175,"d":"175.00 €"}},{"$f":"EelarveÜlevaade[[#This Row],[EELARVESUMMA]]-EelarveÜlevaade[[#This Row],[KOGUMAKSUMUS]]","v":{"v":-25,"d":"25.00 €"}}]
[{"$nulls":3},{"$f":"Laud3Päis","v":"Dekoratsioonid"},{"$f":"COUNTA(Laud3Eelarve[Dekoratsioonid])","v":4},{"v":300,"d":"300.00 €"},{"$f":"Laud3Eelarve[[#Totals],[Hind]]","v":{"v":285,"d":"285.00 €"}},{"$f":"EelarveÜlevaade[[#This Row],[EELARVESUMMA]]-EelarveÜlevaade[[#This Row],[KOGUMAKSUMUS]]","v":{"v":15,"d":"15.00 €"}}]
[{"$nulls":3},"Kokku",{"$f":"SUBTOTAL(109,EelarveÜlevaade[KOGUS])","v":33},{"$f":"SUBTOTAL(109,EelarveÜlevaade[EELARVESUMMA])","v":{"v":1350,"d":"1,350.00 €"}},{"$f":"SUBTOTAL(109,EelarveÜlevaade[KOGUMAKSUMUS])","v":{"v":1335,"d":"1,335.00 €"}},{"$f":"EelarveÜlevaade[[#Totals],[EELARVESUMMA]]-EelarveÜlevaade[[#Totals],[KOGUMAKSUMUS]]","v":{"v":15,"d":"15.00 €"}}]

{"sheet":"Külaliste Nimekiri","index":1,"n_rows":22,"n_cols":12,"rows_kept":22}
[]
[]
[null,"Külaliste nimekiri"]
[]
[]
[]
[null,"NIMI","AADRESS","LINN","MAAKOND","SIHTNUMBER","TELEFON","E-POST","OSALEB?","LAPSED","TÄISKASVANUD","KOKKU"]
[null,"Pere 1","Aadress 1","Linn 1","Maakond 1","Sihtnumber 1","Telefon 1","E-post 1","Ei",2,2,{"$f":"SUM(KülalineLaud[[#This Row],[LAPSED]:[TÄISKASVANUD]])","v":4}]
[null,"Pere 2","Aadress 2","Linn 2","Maakond 2","Sihtnumber 2","Telefon 2","E-post 2","Jah",1,1,{"$f":"SUM(KülalineLaud[[#This Row],[LAPSED]:[TÄISKASVANUD]])","v":2}]
[null,"Pere 3","Aadress 3","Linn 3","Maakond 3","Sihtnumber 3","Telefon 3","E-post 3","Jah",3,3,{"$f":"SUM(KülalineLaud[[#This Row],[LAPSED]:[TÄISKASVANUD]])","v":6}]
[null,"Pere 4","Aadress 4","Linn 4","Maakond 4","Sihtnumber 4","Telefon 4","E-post 4",null,null,2,{"$f":"SUM(KülalineLaud[[#This Row],[LAPSED]:[TÄISKASVANUD]])","v":2}]
[null,"Pere 5","Aadress 5","Linn 5","Maakond 5","Sihtnumber 5","Telefon 5","E-post 5","Jah",4,3,{"$f":"SUM(KülalineLaud[[#This Row],[LAPSED]:[TÄISKASVANUD]])","v":7}]
[null,"Pere 6","Aadress 6","Linn 6","Maakond 6","Sihtnumber 6","Telefon 6","E-post 6","Jah",2,2,{"$f":"SUM(KülalineLaud[[#This Row],[LAPSED]:[TÄISKASVANUD]])","v":4}]
[null,"Pere 7","Aadress 7","Linn 7","Maakond 7","Sihtnumber 7","Telefon 7","E-post 7","Jah",1,4,{"$f":"SUM(KülalineLaud[[#This Row],[LAPSED]:[TÄISKASVANUD]])","v":5}]
[null,"Pere 8","Aadress 8","Linn 8","Maakond 8","Sihtnumber 8","Telefon 8","E-post 8","Ei",5,3,{"$f":"SUM(KülalineLaud[[#This Row],[LAPSED]:[TÄISKASVANUD]])","v":8}]
[null,"Pere 9","Aadress 9","Linn 9","Maakond 9","Sihtnumber 9","Telefon 9","E-post 9","Jah",3,2,{"$f":"SUM(KülalineLaud[[#This Row],[LAPSED]:[TÄISKASVANUD]])","v":5}]
[null,"Pere 10","Aadress 10","Linn 10","Maakond 10","Sihtnumber 10","Telefon 10","E-post 10","Jah",null,4,{"$f":"SUM(KülalineLaud[[#This Row],[LAPSED]:[TÄISKASVANUD]])","v":4}]
[null,"Pere 11","Aadress 11","Linn 11","Maakond 11","Sihtnumber 11","Telefon 11","E-post 11","Jah",3,5,{"$f":"SUM(KülalineLaud[[#This Row],[LAPSED]:[TÄISKASVANUD]])","v":8}]
[null,"Pere 12","Aadress 12","Linn 12","Maakond 12","Sihtnumber 12","Telefon 12","E-post 12","Ei",2,3,{"$f":"SUM(KülalineLaud[[#This Row],[LAPSED]:[TÄISKASVANUD]])","v":5}]
[null,"Pere 13","Aadress 13","Linn 13","Maakond 13","Sihtnumber 13","Telefon 13","E-post 13","Jah",3,2,{"$f":"SUM(KülalineLaud[[#This Row],[LAPSED]:[TÄISKASVANUD]])","v":5}]
[null,"Pere 14","Aadress 14","Linn 14","Maakond 14","Sihtnumber 14","Telefon 14","E-post 14","Ei",null,1,{"$f":"SUM(KülalineLaud[[#This Row],[LAPSED]:[TÄISKASVANUD]])","v":1}]
[null,"Pere 15","Aadress 15","Linn 15","Maakond 15","Sihtnumber 15","Telefon 15","E-post 15",null,null,2,{"$f":"SUM(KülalineLaud[[#This Row],[LAPSED]:[TÄISKASVANUD]])","v":2}]

{"sheet":"Toit Ja Jook","index":2,"n_rows":25,"n_cols":10,"rows_kept":25}
[]
[]
[null,"Toit ja jook"]
[]
[null,"Sisestage hind ja eeldatav portsjonide arv, et saaksite automaatselt arvutada kogused ja portsjonihinnad lähtuvalt osavõtjate arvust."]
[null,"TOIT VÕI JOOK","KOGUMAKSUMUS","PORTSJON LAPSE KOHTA","PORTSJON TÄISKASVANU KOHTA","PORTSJONEID KOKKU","PORTSJONI HIND","KULU LAPSE KOHTA","KULU TÄISKASVANU KOHTA","MÄRKUSED"]
[null,"Karastusjoogid",{"v":15,"d":"15.00 €"},0.5,2,{"$f":"(SöökLaud[[#This Row],[PORTSJON LAPSE KOHTA]]*LapsedKokku)+(SöökLaud[[#This Row],[PORTSJON TÄISKASVANU KOHTA]]*TäiskasvanudKokku)","v":62},{"$f":"IFERROR(SöökLaud[[#This Row],[KOGUMAKSUMUS]]/SöökLaud[[#This Row],[PORTSJONEID KOKKU]],\"\")","v":{"v":0.24193548387096775,"d":"0.24 €"}},{"$f":"IFERROR(SöökLaud[[#This Row],[PORTSJONI HIND]]*SöökLaud[[#This Row],[PORTSJON LAPSE KOHTA]],\"\")","v":{"v":0.12096774193548387,"d":"0.12 €"}},{"$f":"IFERROR(SöökLaud[[#This Row],[PORTSJONI HIND]]*SöökLaud[[#This Row],[PORTSJON TÄISKASVANU KOHTA]],\"\")","v":{"v":0.4838709677419355,"d":"0.48 €"}},"Kaheliitrised pudelid"]
[null,"Mahlapakid",{"v":15,"d":"15.00 €"},2,0,{"$f":"(SöökLaud[[#This Row],[PORTSJON LAPSE KOHTA]]*LapsedKokku)+(SöökLaud[[#This Row],[PORTSJON TÄISKASVANU KOHTA]]*TäiskasvanudKokku)","v":40},{"$f":"IFERROR(SöökLaud[[#This Row],[KOGUMAKSUMUS]]/SöökLaud[[#This Row],[PORTSJONEID KOKKU]],\"\")","v":{"v":0.375,"d":"0.38 €"}},{"$f":"IFERROR(SöökLaud[[#This Row],[PORTSJONI HIND]]*SöökLaud[[#This Row],[PORTSJON LAPSE KOHTA]],\"\")","v":{"v":0.75,"d":"0.75 €"}},{"$f":"IFERROR(SöökLaud[[#This Row],[PORTSJONI HIND]]*SöökLaud[[#This Row],[PORTSJON TÄISKASVANU KOHTA]],\"\")","v":{"v":0,"d":"0.00 €"}},"Õuna-viinamarja"]
[null,"Vein",{"v":50,"d":"50.00 €"},0,2,{"$f":"(SöökLaud[[#This Row],[PORTSJON LAPSE KOHTA]]*LapsedKokku)+(SöökLaud[[#This Row],[PORTSJON TÄISKASVANU KOHTA]]*TäiskasvanudKokku)","v":52},{"$f":"IFERROR(SöökLaud[[#This Row],[KOGUMAKSUMUS]]/SöökLaud[[#This Row],[PORTSJONEID KOKKU]],\"\")","v":{"v":0.9615384615384616,"d":"0.96 €"}},{"$f":"IFERROR(SöökLaud[[#This Row],[PORTSJONI HIND]]*SöökLaud[[#This Row],[PORTSJON LAPSE KOHTA]],\"\")","v":{"v":0,"d":"0.00 €"}},{"$f":"IFERROR(SöökLaud[[#This Row],[PORTSJONI HIND]]*SöökLaud[[#This Row],[PORTSJON TÄISKASVANU KOHTA]],\"\")","v":{"v":1.9230769230769231,"d":"1.92 €"}}]
[null,"Tort",{"v":75,"d":"75.00 €"},1,1,{"$f":"(SöökLaud[[#This Row],[PORTSJON LAPSE KOHTA]]*LapsedKokku)+(SöökLaud[[#This Row],[PORTSJON TÄISKASVANU KOHTA]]*TäiskasvanudKokku)","v":46},{"$f":"IFERROR(SöökLaud[[#This Row],[KOGUMAKSUMUS]]/SöökLaud[[#This Row],[PORTSJONEID KOKKU]],\"\")","v":{"v":1.6304347826086956,"d":"1.63 €"}},{"$f":"IFERROR(SöökLaud[[#This Row],[PORTSJONI HIND]]*SöökLaud[[#This Row],[PORTSJON LAPSE KOHTA]],\"\")","v":{"v":1.6304347826086956,"d":"1.63 €"}},{"$f":"IFERROR(SöökLaud[[#This Row],[PORTSJONI HIND]]*SöökLaud[[#This Row],[PORTSJON TÄISKASVANU KOHTA]],\"\")","v":{"v":1.6304347826086956,"d":"1.63 €"}},"Osta kohalikust pagariärist"]
[null,"Jäätis",{"v":20,"d":"20.00 €"},1,1.5,{"$f":"(SöökLaud[[#This Row],[PORTSJON LAPSE KOHTA]]*LapsedKokku)+(SöökLaud[[#This Row],[PORTSJON TÄISKASVANU KOHTA]]*TäiskasvanudKokku)","v":59},{"$f":"IFERROR(SöökLaud[[#This Row],[KOGUMAKSUMUS]]/SöökLaud[[#This Row],[PORTSJONEID KOKKU]],\"\")","v":{"v":0.3389830508474576,"d":"0.34 €"}},{"$f":"IFERROR(SöökLaud[[#This Row],[PORTSJONI HIND]]*SöökLaud[[#This Row],[PORTSJON LAPSE KOHTA]],\"\")","v":{"v":0.3389830508474576,"d":"0.34 €"}},{"$f":"IFERROR(SöökLaud[[#This Row],[PORTSJONI HIND]]*SöökLaud[[#This Row],[PORTSJON TÄISKASVANU KOHTA]],\"\")","v":{"v":0.5084745762711864,"d":"0.51 €"}}]
[null,"Magustoidukausid",{"v":15,"d":"15.00 €"},1,0,{"$f":"(SöökLaud[[#This Row],[PORTSJON LAPSE KOHTA]]*LapsedKokku)+(SöökLaud[[#This Row],[PORTSJON TÄISKASVANU KOHTA]]*TäiskasvanudKokku)","v":20},{"$f":"IFERROR(SöökLaud[[#This Row],[KOGUMAKSUMUS]]/SöökLaud[[#This Row],[PORTSJONEID KOKKU]],\"\")","v":{"v":0.75,"d":"0.75 €"}},{"$f":"IFERROR(SöökLaud[[#This Row],[PORTSJONI HIND]]*SöökLaud[[#This Row],[PORTSJON LAPSE KOHTA]],\"\")","v":{"v":0.75,"d":"0.75 €"}},{"$f":"IFERROR(SöökLaud[[#This Row],[PORTSJONI HIND]]*SöökLaud[[#This Row],[PORTSJON TÄISKASVANU KOHTA]],\"\")","v":{"v":0,"d":"0.00 €"}},"Osta valmispakitud kausid: vanilli ja šokolaadi"]
[null,"Täidetud munad",{"v":32,"d":"32.00 €"},1,2,{"$f":"(SöökLaud[[#This Row],[PORTSJON LAPSE KOHTA]]*LapsedKokku)+(SöökLaud[[#This Row],[PORTSJON TÄISKASVANU KOHTA]]*TäiskasvanudKokku)","v":72},{"$f":"IFERROR(SöökLaud[[#This Row],[KOGUMAKSUMUS]]/SöökLaud[[#This Row],[PORTSJONEID KOKKU]],\"\")","v":{"v":0.4444444444444444,"d":"0.44 €"}},{"$f":"IFERROR(SöökLaud[[#This Row],[PORTSJONI HIND]]*SöökLaud[[#This Row],[PORTSJON LAPSE KOHTA]],\"\")","v":{"v":0.4444444444444444,"d":"0.44 €"}},{"$f":"IFERROR(SöökLaud[[#This Row],[PORTSJONI HIND]]*SöökLaud[[#This Row],[PORTSJON TÄISKASVANU KOHTA]],\"\")","v":{"v":0.8888888888888888,"d":"0.89 €"}},"Määrdejuustu ja vorstiga täidetud keedetud munad"]
[null,"Tikuvõileivad",{"v":22,"d":"22.00 €"},0,3,{"$f":"(SöökLaud[[#This Row],[PORTSJON LAPSE KOHTA]]*LapsedKokku)+(SöökLaud[[#This Row],[PORTSJON TÄISKASVANU KOHTA]]*TäiskasvanudKokku)","v":78},{"$f":"IFERROR(SöökLaud[[#This Row],[KOGUMAKSUMUS]]/SöökLaud[[#This Row],[PORTSJONEID KOKKU]],\"\")","v":{"v":0.28205128205128205,"d":"0.28 €"}},{"$f":"IFERROR(SöökLaud[[#This Row],[PORTSJONI HIND]]*SöökLaud[[#This Row],[PORTSJON LAPSE KOHTA]],\"\")","v":{"v":0,"d":"0.00 €"}},{"$f":"IFERROR(SöökLaud[[#This Row],[PORTSJONI HIND]]*SöökLaud[[#This Row],[PORTSJON TÄISKASVANU KOHTA]],\"\")","v":{"v":0.8461538461538461,"d":"0.85 €"}},"Tomat ja basiilik "]
[null,"Suitsulõhe",{"v":50,"d":"50.00 €"},1,2,{"$f":"(SöökLaud[[#This Row],[PORTSJON LAPSE KOHTA]]*LapsedKokku)+(SöökLaud[[#This Row],[PORTSJON TÄISKASVANU KOHTA]]*TäiskasvanudKokku)","v":72},{"$f":"IFERROR(SöökLaud[[#This Row],[KOGUMAKSUMUS]]/SöökLaud[[#This Row],[PORTSJONEID KOKKU]],\"\")","v":{"v":0.6944444444444444,"d":"0.69 €"}},{"$f":"IFERROR(SöökLaud[[#This Row],[PORTSJONI HIND]]*SöökLaud[[#This Row],[PORTSJON LAPSE KOHTA]],\"\")","v":{"v":0.6944444444444444,"d":"0.69 €"}},{"$f":"IFERROR(SöökLaud[[#This Row],[PORTSJONI HIND]]*SöökLaud[[#This Row],[PORTSJON TÄISKASVANU KOHTA]],\"\")","v":{"v":1.3888888888888888,"d":"1.39 €"}}]
[null,"Minisaiad",{"v":20,"d":"20.00 €"},1,2,{"$f":"(SöökLaud[[#This Row],[PORTSJON LAPSE KOHTA]]*LapsedKokku)+(SöökLaud[[#This Row],[PORTSJON TÄISKASVANU KOHTA]]*TäiskasvanudKokku)","v":72},{"$f":"IFERROR(SöökLaud[[#This Row],[KOGUMAKSUMUS]]/SöökLaud[[#This Row],[PORTSJONEID KOKKU]],\"\")","v":{"v":0.2777777777777778,"d":"0.28 €"}},{"$f":"IFERROR(SöökLaud[[#This Row],[PORTSJONI HIND]]*SöökLaud[[#This Row],[PORTSJON LAPSE KOHTA]],\"\")","v":{"v":0.2777777777777778,"d":"0.28 €"}},{"$f":"IFERROR(SöökLaud[[#This Row],[PORTSJONI HIND]]*SöökLaud[[#This Row],[PORTSJON TÄISKASVANU KOHTA]],\"\")","v":{"v":0.5555555555555556,"d":"0.56 €"}},"4 kotti, erinevad"]
[null,"Määrdejuust",{"v":10,"d":"10.00 €"},1,2,{"$f":"(SöökLaud[[#This Row],[PORTSJON LAPSE KOHTA]]*LapsedKokku)+(SöökLaud[[#This Row],[PORTSJON TÄISKASVANU KOHTA]]*TäiskasvanudKokku)","v":72},{"$f":"IFERROR(SöökLaud[[#This Row],[KOGUMAKSUMUS]]/SöökLaud[[#This Row],[PORTSJONEID KOKKU]],\"\")","v":{"v":0.1388888888888889,"d":"0.14 €"}},{"$f":"IFERROR(SöökLaud[[#This Row],[PORTSJONI HIND]]*SöökLaud[[#This Row],[PORTSJON LAPSE KOHTA]],\"\")","v":{"v":0.1388888888888889,"d":"0.14 €"}},{"$f":"IFERROR(SöökLaud[[#This Row],[PORTSJONI HIND]]*SöökLaud[[#This Row],[PORTSJON TÄISKASVANU KOHTA]],\"\")","v":{"v":0.2777777777777778,"d":"0.28 €"}},"2 suurt karpi"]
[null,"Oliivid",{"v":12,"d":"12.00 €"},1,2,{"$f":"(SöökLaud[[#This Row],[PORTSJON LAPSE KOHTA]]*LapsedKokku)+(SöökLaud[[#This Row],[PORTSJON TÄISKASVANU KOHTA]]*TäiskasvanudKokku)","v":72},{"$f":"IFERROR(SöökLaud[[#This Row],[KOGUMAKSUMUS]]/SöökLaud[[#This Row],[PORTSJONEID KOKKU]],\"\")","v":{"v":0.16666666666666666,"d":"0.17 €"}},{"$f":"IFERROR(SöökLaud[[#This Row],[PORTSJONI HIND]]*SöökLaud[[#This Row],[PORTSJON LAPSE KOHTA]],\"\")","v":{"v":0.16666666666666666,"d":"0.17 €"}},{"$f":"IFERROR(SöökLaud[[#This Row],[PORTSJONI HIND]]*SöökLaud[[#This Row],[PORTSJON TÄISKASVANU KOHTA]],\"\")","v":{"v":0.3333333333333333,"d":"0.33 €"}},"3 purki"]
[null,"Kanatiivad",{"v":45,"d":"45.00 €"},2,4,{"$f":"(SöökLaud[[#This Row],[PORTSJON LAPSE KOHTA]]*LapsedKokku)+(SöökLaud[[#This Row],[PORTSJON TÄISKASVANU KOHTA]]*TäiskasvanudKokku)","v":144},{"$f":"IFERROR(SöökLaud[[#This Row],[KOGUMAKSUMUS]]/SöökLaud[[#This Row],[PORTSJONEID KOKKU]],\"\")","v":{"v":0.3125,"d":"0.31 €"}},{"$f":"IFERROR(SöökLaud[[#This Row],[PORTSJONI HIND]]*SöökLaud[[#This Row],[PORTSJON LAPSE KOHTA]],\"\")","v":{"v":0.625,"d":"0.63 €"}},{"$f":"IFERROR(SöökLaud[[#This Row],[PORTSJONI HIND]]*SöökLaud[[#This Row],[PORTSJON TÄISKASVANU KOHTA]],\"\")","v":{"v":1.25,"d":"1.25 €"}},"Osta kohalikust lihapoest"]
[null,"Hummus",{"v":10,"d":"10.00 €"},4,6,{"$f":"(SöökLaud[[#This Row],[PORTSJON LAPSE KOHTA]]*LapsedKokku)+(SöökLaud[[#This Row],[PORTSJON TÄISKASVANU KOHTA]]*TäiskasvanudKokku)","v":236},{"$f":"IFERROR(SöökLaud[[#This Row],[KOGUMAKSUMUS]]/SöökLaud[[#This Row],[PORTSJONEID KOKKU]],\"\")","v":{"v":0.0423728813559322,"d":"0.04 €"}},{"$f":"IFERROR(SöökLaud[[#This Row],[PORTSJONI HIND]]*SöökLaud[[#This Row],[PORTSJON LAPSE KOHTA]],\"\")","v":{"v":0.1694915254237288,"d":"0.17 €"}},{"$f":"IFERROR(SöökLaud[[#This Row],[PORTSJONI HIND]]*SöökLaud[[#This Row],[PORTSJON TÄISKASVANU KOHTA]],\"\")","v":{"v":0.2542372881355932,"d":"0.25 €"}},"Teha valmis eelmisel õhtul"]
[null,"Parmesanijuustuga krõpsud",{"v":14,"d":"14.00 €"},4,6,{"$f":"(SöökLaud[[#This Row],[PORTSJON LAPSE KOHTA]]*LapsedKokku)+(SöökLaud[[#This Row],[PORTSJON TÄISKASVANU KOHTA]]*TäiskasvanudKokku)","v":236},{"$f":"IFERROR(SöökLaud[[#This Row],[KOGUMAKSUMUS]]/SöökLaud[[#This Row],[PORTSJONEID KOKKU]],\"\")","v":{"v":0.059322033898305086,"d":"0.06 €"}},{"$f":"IFERROR(SöökLaud[[#This Row],[PORTSJONI HIND]]*SöökLaud[[#This Row],[PORTSJON LAPSE KOHTA]],\"\")","v":{"v":0.23728813559322035,"d":"0.24 €"}},{"$f":"IFERROR(SöökLaud[[#This Row],[PORTSJONI HIND]]*SöökLaud[[#This Row],[PORTSJON TÄISKASVANU KOHTA]],\"\")","v":{"v":0.3559322033898305,"d":"0.36 €"}},"Teha valmis eelmisel õhtul"]
[null,"Köögiviljavalik",{"v":30,"d":"30.00 €"},4,10,{"$f":"(SöökLaud[[#This Row],[PORTSJON LAPSE KOHTA]]*LapsedKokku)+(SöökLaud[[#This Row],[PORTSJON TÄISKASVANU KOHTA]]*TäiskasvanudKokku)","v":340},{"$f":"IFERROR(SöökLaud[[#This Row],[KOGUMAKSUMUS]]/SöökLaud[[#This Row],[PORTSJONEID KOKKU]],\"\")","v":{"v":0.08823529411764706,"d":"0.09 €"}},{"$f":"IFERROR(SöökLaud[[#This Row],[PORTSJONI HIND]]*SöökLaud[[#This Row],[PORTSJON LAPSE KOHTA]],\"\")","v":{"v":0.35294117647058826,"d":"0.35 €"}},{"$f":"IFERROR(SöökLaud[[#This Row],[PORTSJONI HIND]]*SöökLaud[[#This Row],[PORTSJON TÄISKASVANU KOHTA]],\"\")","v":{"v":0.8823529411764707,"d":"0.88 €"}},"Porgandipulgad, seller, brokkoli, lillkapsas, punane ja roheline paprika"]
[null,"Juustupallid",{"v":15,"d":"15.00 €"},5,10,{"$f":"(SöökLaud[[#This Row],[PORTSJON LAPSE KOHTA]]*LapsedKokku)+(SöökLaud[[#This Row],[PORTSJON TÄISKASVANU KOHTA]]*TäiskasvanudKokku)","v":360},{"$f":"IFERROR(SöökLaud[[#This Row],[KOGUMAKSUMUS]]/SöökLaud[[#This Row],[PORTSJONEID KOKKU]],\"\")","v":{"v":0.041666666666666664,"d":"0.04 €"}},{"$f":"IFERROR(SöökLaud[[#This Row],[PORTSJONI HIND]]*SöökLaud[[#This Row],[PORTSJON LAPSE KOHTA]],\"\")","v":{"v":0.20833333333333331,"d":"0.21 €"}},{"$f":"IFERROR(SöökLaud[[#This Row],[PORTSJONI HIND]]*SöökLaud[[#This Row],[PORTSJON TÄISKASVANU KOHTA]],\"\")","v":{"v":0.41666666666666663,"d":"0.42 €"}},"Erinevad: sulatatud juust, teravamaitseline juust pähklitega"]
[null,"Küpsised",{"v":25,"d":"25.00 €"},5,10,{"$f":"(SöökLaud[[#This Row],[PORTSJON LAPSE KOHTA]]*LapsedKokku)+(SöökLaud[[#This Row],[PORTSJON TÄISKASVANU KOHTA]]*TäiskasvanudKokku)","v":360},{"$f":"IFERROR(SöökLaud[[#This Row],[KOGUMAKSUMUS]]/SöökLaud[[#This Row],[PORTSJONEID KOKKU]],\"\")","v":{"v":0.06944444444444445,"d":"0.07 €"}},{"$f":"IFERROR(SöökLaud[[#This Row],[PORTSJONI HIND]]*SöökLaud[[#This Row],[PORTSJON LAPSE KOHTA]],\"\")","v":{"v":0.3472222222222222,"d":"0.35 €"}},{"$f":"IFERROR(SöökLaud[[#This Row],[PORTSJONI HIND]]*SöökLaud[[#This Row],[PORTSJON TÄISKASVANU KOHTA]],\"\")","v":{"v":0.6944444444444444,"d":"0.69 €"}},"Erinevad"]
[null,"Kokku",{"$f":"SUBTOTAL(109,SöökLaud[KOGUMAKSUMUS])","v":{"v":475,"d":"475.00 €"}},{"$f":"SUBTOTAL(109,SöökLaud[PORTSJON LAPSE KOHTA])","v":34.5},{"$f":"SUBTOTAL(109,SöökLaud[PORTSJON TÄISKASVANU KOHTA])","v":65.5},{"$f":"SUBTOTAL(109,SöökLaud[PORTSJONEID KOKKU])","v":2393},{"$f":"SUBTOTAL(109,SöökLaud[PORTSJONI HIND])","v":{"v":6.915706603622084,"d":"6.92 €"}},{"$f":"SUBTOTAL(109,SöökLaud[KULU LAPSE KOHTA])","v":{"v":7.252884190656953,"d":"7.25 €"}},{"$f":"SUBTOTAL(109,SöökLaud[KULU TÄISKASVANU KOHTA])","v":{"v":12.690089084110037,"d":"12.69 €"}}]

{"sheet":"Muu Vajalik","index":3,"n_rows":30,"n_cols":5,"rows_kept":30,"merged":[[14,1,14,4],[22,1,22,4]]}
[]
[]
[null,"Muu vajalik"]
[]
[]
[null,"Seadmed ja tarvikud","Hind","Ostetud","Märkused"]
[null,"Ruumide/saali üürimine",{"v":250,"d":"250.00 €"},"Jah"]
[null,"Laudlinad",{"v":30,"d":"30.00 €"},"Jah","Üür"]
[null,"Lauad ja toolid",{"v":0,"d":"0.00 €"},null,"Saali üüri sees"]
[null,"Pabersalvrätid",{"v":25,"d":"25.00 €"}]
[null,"Riidest salvrätid",{"v":20,"d":"20.00 €"},null,"Üür"]
[null,"Lauateenindus",{"v":50,"d":"50.00 €"},null,"Üür"]
[null,"Lauanõud",{"v":25,"d":"25.00 €"},null,"Üür"]
[null,"Kokku",{"$f":"SUBTOTAL(109,Laud1Eelarve[Hind])","v":{"v":400,"d":"400.00 €"}}]
[]
[]
[null,"Dekoratsioonid","Hind","Ostetud","Märkused"]
[null,"Õhupallid",{"v":25,"d":"25.00 €"}]
[null,"Heeliumipaak",{"v":50,"d":"50.00 €"},null,"Üür"]
[null,"Lauakaunistused",{"v":100,"d":"100.00 €"},"Jah","Kokku 10"]
[null,"Klaasvaasid",{"v":0,"d":"0.00 €"},null,"Maarikalt laenuks"]
[null,"Kokku",{"$f":"SUBTOTAL(109,Laud2Eelarve[Hind])","v":{"v":175,"d":"175.00 €"}}]
[]
[]
[null,"Dekoratsioonid","Hind","Ostetud","Märkused"]
[null,"Kutsed",{"v":50,"d":"50.00 €"},"Jah"]
[null,"Postikulu",{"v":60,"d":"60.00 €"},"Jah"]
[null,"Fotograaf",{"v":125,"d":"125.00 €"},null,"Kaks tundi (14:00–16:00)"]
[null,"Väikesed kingitused",{"v":50,"d":"50.00 €"}]
[null,"Kokku",{"$f":"SUBTOTAL(109,Laud3Eelarve[Hind])","v":{"v":285,"d":"285.00 €"}}]

{"sheet":"Istumispaigutuse Ruudustik","index":4,"n_rows":43,"n_cols":34,"rows_kept":43,"merged":[[35,0,35,17],[35,19,35,33]]}
["Paigutus"]
{"$rows_empty":33}
[{"$nulls":33},"*1 ruut = umbes 30 x 30 cm"]
["Märkused",{"$nulls":18},{"$f":"\" Kinnitatud külaliste koguarv: \"&KinnitatudKülalised","v":" Kinnitatud külaliste koguarv: 46"}]
[{"$nulls":19},"Saate kasutada mõnda järgmistest lauapaigutustest:"]
[{"$nulls":20},{"$f":"ROUNDUP(KinnitatudKülalised/6,0)&\" 137 cm läbimõõduga ümmargused lauad (6 istekohta)\"","v":"8 137 cm läbimõõduga ümmargused lauad (6 istekohta)"}]
[{"$nulls":20},{"$f":"ROUNDUP(KinnitatudKülalised/8,0) &\" 152 cm läbimõõduga ümmargused lauad (8 istekohta)\"","v":"6 152 cm läbimõõduga ümmargused lauad (8 istekohta)"}]
[{"$nulls":20},{"$f":"ROUNDUP(KinnitatudKülalised/10,0)&\" 183 cm läbimõõduga ümmargused lauad (10 istekohta)\"","v":"5 183 cm läbimõõduga ümmargused lauad (10 istekohta)"}]
[{"$nulls":20},{"$f":"ROUNDUP(KinnitatudKülalised/6,0)& \" 76 cm × 183 cm kandilised lauad (6 istekohta)\"","v":"8 76 cm × 183 cm kandilised lauad (6 istekohta)"}]
[{"$nulls":20},{"$f":"ROUNDUP(KinnitatudKülalised/8,0)&\" 76 cm × 244 cm kandilised lauad (8 istekohta)\"","v":"6 76 cm × 244 cm kandilised lauad (8 istekohta)"}]
[{"$nulls":19},"(Laudade jaoks eelistatud vahe: 105–110 cm)"]